fUST/lending_fUST_20251209
["ID","MTS","AMOUNT","RATE_DAILY","PERIOD"]
[398013285,1765285844084,-171.14625143,8.219e-05,2]
[398013286,1765285844092,-500.0,8.219e-05,2]
[398013287,1765285844102,-2247.26744731,8.296e-05,2]
[398013288,1765285844111,-500.0,8.306e-05,2]
[398013289,1765285844121,-501.0,8.306e-05,2]
[398013290,1765285844130,-500.0,8.306e-05,2]
[398013291,1765285844139,-538.21274117,8.306e-05,2]
[398013292,1765285844150,-245.78136203,8.306e-05,2]
[398013293,1765285844159,-235.96314328,8.306e-05,2]
[398013294,1765285844168,-799.73,8.356e-05,2]
[398013295,1765285844178,-282.93,8.393e-05,2]
[398013296,1765285844187,-500.0,8.443e-05,2]
[398013297,1765285844197,-501.0,8.443e-05,2]
[398013298,1765285844206,-500.0,8.443e-05,2]
[398013299,1765285844215,-584.6525,8.443e-05,2]
[398013300,1765285844225,-194.8841,8.443e-05,2]
[398013301,1765285844235,-5288.9133214,8.448e-05,2]
[398013302,1765285844245,-500.0,8.493e-05,2]
[398013303,1765285844256,-280.28279919,8.55e-05,2]
[398013304,1765285844266,-500.0,8.58e-05,2]
[398013305,1765285844275,-501.0,8.58e-05,2]
[398013306,1765285844285,-500.0,8.58e-05,2]
[398013307,1765285844294,-194.8841,8.612e-05,2]
[398013308,1765285844303,-720.0,8.664e-05,2]
[398013309,1765285844313,-2247.26744731,8.68e-05,2]
[398013310,1765285844323,-500.0,8.717e-05,2]
[398013311,1765285844332,-501.0,8.717e-05,2]
[398013312,1765285844342,-500.0,8.717e-05,2]
[398013313,1765285844351,-500.0,8.767e-05,2]
[398013314,1765285844361,-2247.26744731,8.799e-05,2]
[398013315,1765285844370,-644.65304574,8.806e-05,2]
[398013316,1765285844379,-500.0,8.854e-05,2]
[398013317,1765285844389,-501.0,8.854e-05,2]
[398013318,1765285844398,-500.0,8.854e-05,2]
[398013319,1765285844407,-351.47531344,8.875e-05,2]
[398013320,1765285844417,-250.0,8.876e-05,2]
[398013321,1765285844426,-7692.032933,8.896e-05,2]
[398013322,1765285844436,-500.0,8.991e-05,2]
[398013323,1765285844445,-501.0,8.991e-05,2]
[398013324,1765285844455,-500.0,8.991e-05,2]
[398013325,1765285844464,-1066.3,8.998e-05,2]
[398013326,1765285844473,-500.0,9.041e-05,2]
[398013327,1765285844482,-2247.26744731,9.062e-05,2]
[398013328,1765285844491,-449.58403507,9.114e-05,2]
[398013329,1765285844500,-2579.17784983,9.114e-05,2]
[398013330,1765285844509,-280.28279919,9.125e-05,2]
[398013331,1765285844518,-501.12575894,9.128e-05,2]
[398013332,1765285844527,-501.0,9.128e-05,2]
[398013333,1765285844537,-261.23693213,9.128e-05,2]
[398013334,1765285844546,-501.0,9.265e-05,2]
[398013335,1765285844555,-500.0,9.315e-05,2]
[398013336,1765285844564,-501.0,9.402e-05,2]
[398013337,1765285844573,-2247.26744731,9.424e-05,2]
[398013338,1765285844583,-1180.1160764,9.521e-05,2]
[398013339,1765285844592,-864.0,9.531e-05,2]
[398013340,1765285844601,-644.65304574,9.532e-05,2]
[398013341,1765285844610,-501.0,9.539e-05,2]
[398013342,1765285844620,-500.0,9.589e-05,2]
[398013343,1765285844629,-1332.88,9.641e-05,2]
[398013344,1765285844639,-2321.4327058,9.655e-05,2]
[398013345,1765285844648,-2674.60743027,9.662e-05,2]
[398013346,1765285844658,-501.0,9.676e-05,2]
[398013347,1765285844667,-280.28279919,9.7e-05,2]
[398013348,1765285844676,-194.8843,9.709e-05,2]
[398013349,1765285844686,-263.3194891,9.761e-05,2]
[398013350,1765285844695,-2247.26744731,9.797e-05,2]
[398013351,1765285844704,-501.0,9.813e-05,2]
[398013352,1765285844714,-500.0,9.863e-05,2]
[398013353,1765285844723,-501.0,9.95e-05,2]
[398013354,1765285844733,-10000.0,0.0001,2]
[398013355,1765285844745,-221.61316043,0.0001,2]
[398013356,1765285844759,-151.49,0.0001,2]
[398013357,1765285844769,-151.0,0.0001,2]
[398013358,1765285844779,-151.0,0.0001,2]
[398013359,1765285844788,-151.0,0.0001,2]
[398013360,1765285844797,-151.0,0.0001,2]
[398013361,1765285844806,-151.0,0.0001,2]
[398013362,1765285844816,-151.0,0.0001,2]
[398013363,1765285844825,-151.0,0.0001,2]
[398013364,1765285844834,-151.0,0.0001,2]
[398013365,1765285844843,-151.0,0.0001,2]
[398013366,1765285844853,-151.0,0.0001,2]
[398013367,1765285844863,-151.0,0.0001,2]
[398013368,1765285844872,-151.0,0.0001,2]
[398013369,1765285844881,-151.0,0.0001,2]
[398013370,1765285844890,-151.0,0.0001,2]
[398013371,1765285844900,-151.0,0.0001,2]
[398013372,1765285844909,-151.0,0.0001,2]
[398013373,1765285844919,-151.0,0.0001,2]
[398013374,1765285844928,-151.0,0.0001,2]
[398013375,1765285844937,-151.0,0.0001,2]
[398013376,1765285844946,-151.0,0.0001,2]
[398013377,1765285844956,-501.0,0.00010087,2]
[398013378,1765285844966,-2247.26744731,0.00010093,2]
[398013379,1765285844975,-500.0,0.00010137,2]
[398013380,1765285844984,-2773.56790519,0.0001021,2]
[398013381,1765285844994,-501.0,0.00010224,2]
[398013382,1765285845003,-644.65304574,0.00010258,2]
[398013383,1765285845013,-280.28279919,0.00010275,2]
[398013384,1765285845022,-1599.46,0.00010284,2]
[398013385,1765285845031,-2247.26744734,0.00010296,2]
[398013386,1765285845040,-501.0,0.00010361,2]
[398013387,1765285845050,-500.0,0.00010411,2]
[398013388,1765285845059,-1000.0,0.00010484,2]
[398013389,1765285845068,-501.0,0.00010498,2]
[398013390,1765285845082,-151.49,0.000105,2]
[398013391,1765285845092,-501.0,0.00010635,2]
[398013392,1765285845101,-500.0,0.00010685,2]
[398013393,1765285845111,-283.67152914,0.00010685,2]
[398013394,1765285845120,-324.1960333,0.00010685,2]
[398013395,1765285845130,-506.04974573,0.00010685,2]
[398013396,1765285845139,-1157.9663924,0.0001074,2]
[398013397,1765285845149,-501.0,0.00010772,2]
[398013398,1765285845158,-280.56308199,0.0001085,2]
[398013399,1765285845168,-405.09019176,0.00010875,2]
[398013400,1765285845177,-501.0,0.00010909,2]
[398013401,1765285845187,-1866.03,0.00010927,2]
[398013402,1765285845197,-999.0,0.00010959,2]
[398013403,1765285845207,-21436.0872312,0.00010959,2]
[398013404,1765285845216,-500.0,0.00010959,2]
[398013405,1765285845226,-159.84,0.00010959,2]
[398013406,1765285845237,-500.0,0.00010959,2]
[398013407,1765285845246,-500.0,0.00010959,2]
[398013408,1765285845256,-500.0,0.00010959,2]
[398013409,1765285845265,-500.0,0.00010959,2]
[398013410,1765285845275,-500.0,0.00010959,2]
[398013411,1765285845285,-500.0,0.00010959,2]
[398013412,1765285845294,-500.0,0.00010959,2]
[398013413,1765285845304,-500.0,0.00010959,2]
[398013414,1765285845314,-500.0,0.00010959,2]
[398013415,1765285845324,-500.0,0.00010959,2]
[398013416,1765285845334,-500.0,0.00010959,2]
[398013417,1765285845344,-500.0,0.00010959,2]
[398013418,1765285845354,-500.0,0.00010959,2]
[398013419,1765285845364,-500.0,0.00010959,2]
[398013420,1765285845373,-500.0,0.00010959,2]
[398013421,1765285845383,-500.0,0.00010959,2]
[398013422,1765285845393,-500.0,0.00010959,2]
[398013423,1765285845402,-416.31253262,0.00010959,2]
[398013424,1765285845411,-500.0,0.00010959,2]
[398013425,1765285845421,-500.0,0.00010959,2]
[398013426,1765285845430,-500.0,0.00010959,2]
[398013427,1765285845440,-500.0,0.00010959,2]
[398013428,1765285845449,-500.0,0.00010959,2]
[398013429,1765285845459,-500.0,0.00010959,2]
[398013430,1765285845468,-500.0,0.00010959,2]
[398013431,1765285845478,-500.0,0.00010959,2]
[398013432,1765285845488,-500.0,0.00010959,2]
[398013433,1765285845497,-500.0,0.00010959,2]
[398013434,1765285845507,-500.0,0.00010959,2]
[398013435,1765285845516,-500.0,0.00010959,2]
[398013436,1765285845525,-500.0,0.00010959,2]
[398013437,1765285845534,-500.0,0.00010959,2]
[398013438,1765285845543,-500.0,0.00010959,2]
[398013439,1765285845553,-500.0,0.00010959,2]
[398013440,1765285845563,-500.0,0.00010959,2]
[398013441,1765285845572,-500.0,0.00010959,2]
[398013442,1765285845582,-500.0,0.00010959,2]
[398013443,1765285845591,-500.0,0.00010959,2]
[398013444,1765285845600,-500.0,0.00010959,2]
[398013445,1765285845610,-500.0,0.00010959,2]
[398013446,1765285845619,-500.0,0.00010959,2]
[398013447,1765285845629,-500.0,0.00010959,2]
[398013448,1765285845639,-500.0,0.00010959,2]
[398013450,1765285845649,-500.0,0.00010959,2]
[398013452,1765285845658,-500.0,0.00010959,2]
[398013453,1765285845668,-500.0,0.00010959,2]
[398013455,1765285845678,-500.0,0.00010959,2]
[398013456,1765285845688,-500.0,0.00010959,2]
[398013458,1765285845697,-500.0,0.00010959,2]
[398013459,1765285845707,-500.0,0.00010959,2]
[398013461,1765285845716,-500.0,0.00010959,2]
[398013462,1765285845726,-4099.95231195,0.00010959,2]
[398013463,1765285845736,-4099.95231195,0.00010959,2]
[398013464,1765285845749,-4099.95231195,0.00010959,2]
[398013465,1765285845759,-4099.95231195,0.00010959,2]
[398013466,1765285845768,-4099.95231195,0.00010959,2]
[398013467,1765285845778,-4099.95231195,0.00010959,2]
[398013468,1765285845787,-4099.95231195,0.00010959,2]
[398013469,1765285845797,-4099.95231195,0.00010959,2]
[398013470,1765285845806,-4099.95231195,0.00010959,2]
[398013471,1765285845816,-4099.95231195,0.00010959,2]
[398013472,1765285845827,-4099.95231195,0.00010959,2]
[398013473,1765285845837,-4099.95231195,0.00010959,2]
[398013474,1765285845846,-4099.95231195,0.00010959,2]
[398013475,1765285845856,-4099.95231195,0.00010959,2]
[398013476,1765285845866,-4099.95231195,0.00010959,2]
[398013477,1765285845875,-4099.95231195,0.00010959,2]
[398013478,1765285845885,-4099.95231195,0.00010959,2]
[398013479,1765285845895,-4099.95231195,0.00010959,2]
[398013480,1765285845904,-4099.95231195,0.00010959,2]
[398013481,1765285845914,-4099.95231195,0.00010959,2]
[398013482,1765285845923,-4099.95231195,0.00010959,2]
[398013483,1765285845932,-4099.95231195,0.00010959,2]
[398013484,1765285845942,-4099.95231195,0.00010959,2]
[398013485,1765285845951,-4099.95231195,0.00010959,2]
[398013486,1765285845960,-4099.95231195,0.00010959,2]
[398013487,1765285845970,-4099.95231195,0.00010959,2]
[398013489,1765285845979,-4099.95231195,0.00010959,2]
[398013491,1765285845988,-4099.95231195,0.00010959,2]
[398013492,1765285845998,-4099.95231195,0.00010959,2]
[398013494,1765285846007,-4089.70243118,0.00010959,2]
[398013496,1765285846016,-4089.70243118,0.00010959,2]
[398013498,1765285846026,-4089.70243118,0.00010959,2]
[398013500,1765285846035,-4089.70243118,0.00010959,2]
[398013502,1765285846044,-4089.70243118,0.00010959,2]
[398013504,1765285846054,-4089.70243118,0.00010959,2]
[398013506,1765285846063,-4089.70243118,0.00010959,2]
[398013508,1765285846073,-4089.70243118,0.00010959,2]
[398013510,1765285846082,-4089.70243118,0.00010959,2]
[398013512,1765285846092,-4089.70243118,0.00010959,2]
[398013514,1765285846102,-543.80303723,0.00010959,2]
[398013515,1765285846112,-543.80303723,0.00010959,2]
[398013516,1765285846121,-543.80303723,0.00010959,2]
[398013517,1765285846130,-543.80303723,0.00010959,2]
[398013518,1765285846140,-543.80303723,0.00010959,2]
[398013519,1765285846150,-543.80303723,0.00010959,2]
[398013520,1765285846159,-543.80303723,0.00010959,2]
[398013521,1765285846169,-543.80303723,0.00010959,2]
[398013522,1765285846178,-543.80303723,0.00010959,2]
[398013523,1765285846187,-543.80303723,0.00010959,2]
[398013524,1765285846197,-543.80303723,0.00010959,2]
[398013525,1765285846208,-543.80303723,0.00010959,2]
[398013526,1765285846217,-543.80303723,0.00010959,2]
[398013527,1765285846227,-543.80303723,0.00010959,2]
[398013528,1765285846236,-543.80303723,0.00010959,2]
[398013529,1765285846246,-543.80303723,0.00010959,2]
[398013530,1765285846255,-543.80303723,0.00010959,2]
[398013531,1765285846264,-543.80303723,0.00010959,2]
[398013532,1765285846274,-543.80303723,0.00010959,2]
[398013533,1765285846283,-578.40868506,0.00010959,2]
[398013534,1765285846293,-578.40868506,0.00010959,2]
[398013535,1765285846302,-578.40868506,0.00010959,2]
[398013536,1765285846311,-578.40868506,0.00010959,2]
[398013537,1765285846320,-578.40868506,0.00010959,2]
[398013538,1765285846330,-578.40868506,0.00010959,2]
[398013539,1765285846339,-578.40868506,0.00010959,2]
[398013540,1765285846349,-578.40868506,0.00010959,2]
[398013541,1765285846358,-578.40868506,0.00010959,2]
[398013542,1765285846367,-578.40868506,0.00010959,2]
[398013543,1765285846377,-578.40868506,0.00010959,2]
[398013544,1765285846387,-645.29769878,0.00010984,2]
[398013545,1765285846396,-159.0,0.00011,2]
[398013546,1765285846406,-900.0,0.00011,2]
[398013547,1765285846415,-281.0,0.00011,2]
[398013548,1765285846424,-284.8,0.00011,2]
[398013549,1765285846434,-151.0,0.00011,2]
[398013550,1765285846443,-151.0,0.00011,2]
[398013551,1765285846452,-151.49,0.00011,2]
[398013552,1765285846462,-21320.22657117,0.00011015,2]
[398013553,1765285846471,-501.0,0.00011046,2]
[398013554,1765285846481,-511.7001869,0.00011183,2]
[398013555,1765285846492,-151.0,0.000112,2]
[398013556,1765285846502,-151.0,0.000112,2]
[398013557,1765285846511,-151.0,0.000112,2]
[398013558,1765285846521,-151.0,0.000112,2]
[398013559,1765285846530,-151.0,0.000112,2]
[398013560,1765285846539,-500.0,0.00011233,2]
[398013561,1765285846733,-159.84,0.00011233,2]
[398013562,1765285846775,-151.0,0.000114,2]
[398013563,1765285846784,-151.0,0.000114,2]
[398013564,1765285846794,-151.0,0.000114,2]
[398013565,1765285846803,-151.0,0.000114,2]
[398013566,1765285846813,-151.0,0.000114,2]
[398013567,1765285846824,-151.0,0.000114,2]
[398013568,1765285846833,-151.49,0.000115,2]
[398013569,1765285846842,-500.0,0.00011507,2]
[398013570,1765285846851,-159.84517845,0.00011507,2]
[398013571,1765285846861,-1000.0,0.00011532,2]
[398013572,1765285846871,-244.0,0.00011532,2]
[398013573,1765285846880,-2132.61,0.00011569,2]
[398013574,1765285846890,-159.0,0.000116,2]
[398013575,1765285846899,-159.0,0.000116,2]
[398013576,1765285846908,-159.0,0.000116,2]
[398013577,1765285846917,-151.0,0.000116,2]
[398013578,1765285846927,-151.0,0.000116,2]
[398013579,1765285846936,-151.0,0.000116,2]
[398013580,1765285846946,-151.0,0.000116,2]
[398013581,1765285846955,-151.0,0.000116,2]
[398013582,1765285846964,-151.0,0.000116,2]
[398013583,1765285846973,-500.0,0.00011781,2]
[398013584,1765285846982,-151.0,0.000118,2]
[398013585,1765285846991,-151.0,0.000118,2]
[398013586,1765285847000,-151.0,0.000118,2]
[398013587,1765285847009,-151.0,0.000118,2]
[398013588,1765285847018,-151.0,0.000118,2]
[398013589,1765285847027,-151.0,0.000118,2]
[398013590,1765285847036,-1001.0,0.00012,3]
[398013591,1765285847045,-151.0,0.00012,2]
[398013592,1765285847054,-151.0,0.00012,2]
[398013593,1765285847064,-151.0,0.00012,2]
[398013594,1765285847073,-151.0,0.00012,2]
[398013595,1765285847083,-151.0,0.00012,2]
[398013596,1765285847092,-151.49,0.00012,2]
[398013597,1765285847101,-500.0,0.00012055,2]
[398013598,1765285847110,-151.0,0.000121,2]
[398013599,1765285847119,-151.0,0.000122,2]
[398013600,1765285847129,-151.0,0.000122,2]
[398013601,1765285847138,-151.0,0.000122,2]
[398013602,1765285847147,-151.0,0.000122,2]
[398013603,1765285847157,-151.0,0.000122,2]
[398013604,1765285847166,-2399.18,0.00012212,2]
[398013605,1765285847176,-151.0,0.000123,2]
[398013606,1765285847185,-500.0,0.00012329,2]
[398013607,1765285847195,-4874.62,0.00012329,2]
[398013608,1765285847205,-4062.18,0.00012329,2]
[398013609,1765285847215,-3385.15,0.00012329,2]
[398013610,1765285847224,-2820.96,0.00012329,2]
[398013611,1765285847234,-2350.8,0.00012329,2]
[398013612,1765285847243,-1959.0,0.00012329,2]
[398013613,1765285847252,-1632.5,0.00012329,2]
[398013614,1765285847261,-1360.41,0.00012329,2]
[398013615,1765285847271,-1133.68,0.00012329,2]
[398013616,1765285847280,-944.73,0.00012329,2]
[398013617,1765285847290,-787.28,0.00012329,2]
[398013618,1765285847299,-656.06,0.00012329,2]
[398013619,1765285847309,-546.72,0.00012329,2]
[398013620,1765285847319,-455.6,0.00012329,2]
[398013621,1765285847328,-379.67,0.00012329,2]
[398013622,1765285847337,-316.39,0.00012329,2]
[398013623,1765285847347,-263.66,0.00012329,2]
[398013624,1765285847357,-219.71,0.00012329,2]
[398013625,1765285847366,-183.1,0.00012329,2]
[398013626,1765285847375,-152.58,0.00012329,2]
[398013627,1765285847385,-762.92,0.00012329,2]
[398013628,1765285847394,-151.0,0.000124,2]
[398013629,1765285847403,-151.0,0.000124,2]
[398013630,1765285847413,-151.0,0.000124,2]
[398013631,1765285847423,-151.0,0.000124,2]
[398013632,1765285847432,-151.0,0.000124,2]
[398013633,1765285847441,-166.0,0.0001246,2]
[398013634,1765285847450,-36.3542738,0.0001246,2]
[398013635,1765285847543,-130.6457262,0.0001246,2]
[398013636,1765285847552,-166.0,0.0001246,2]
[398013637,1765285847563,-165.95372964,0.0001246,2]
[398013638,1765285847572,-167.0,0.0001246,2]
[398013639,1765285847581,-156.0,0.0001246,2]
[398013640,1765285847590,-166.0,0.0001246,2]
[398013641,1765285847601,-269.24181803,0.0001246,2]
[398013642,1765285847610,-167.0,0.0001246,2]
[398013643,1765285847619,-156.0,0.0001246,2]
[398013644,1765285847628,-167.0,0.0001246,2]
[398013645,1765285847637,-166.0,0.0001246,2]
[398013646,1765285847646,-156.0,0.0001246,2]
[398013647,1765285847656,-161.44865978,0.0001246,2]
[398013648,1765285847665,-152.0,0.0001246,2]
[398013649,1765285847674,-156.0,0.0001246,2]
[398013650,1765285847683,-166.0,0.0001246,2]
[398013651,1765285847693,-152.0,0.0001246,2]
[398013652,1765285847702,-156.0,0.0001246,2]
[398013653,1765285847710,-334.0,0.0001246,2]
[398013654,1765285847721,-166.0,0.0001246,2]
[398013655,1765285847736,-152.0,0.0001246,2]
[398013656,1765285847746,-156.0,0.0001246,2]
[398013657,1765285847755,-334.0,0.0001246,2]
[398013658,1765285847764,-166.64534922,0.0001246,2]
[398013659,1765285847776,-152.0,0.0001246,2]
[398013660,1765285847785,-156.0,0.0001246,2]
[398013661,1765285847795,-334.0,0.0001246,2]
[398013662,1765285847804,-152.0,0.0001246,2]
[398013663,1765285847814,-156.0,0.0001246,2]
[398013664,1765285847823,-334.0,0.0001246,2]
[398013665,1765285847833,-152.0,0.0001246,2]
[398013666,1765285847842,-156.0,0.0001246,2]
[398013667,1765285847851,-334.0,0.0001246,2]
[398013668,1765285847861,-152.0,0.0001246,2]
[398013669,1765285847871,-156.0,0.0001246,2]
[398013670,1765285847880,-334.0,0.0001246,2]
[398013671,1765285847889,-152.0,0.0001246,2]
[398013672,1765285847898,-156.0,0.0001246,2]
[398013673,1765285847907,-334.0,0.0001246,2]
[398013674,1765285847916,-152.0,0.0001246,2]
[398013675,1765285847926,-165.46185907,0.0001246,2]
[398013676,1765285847936,-334.0,0.0001246,2]
[398013677,1765285847946,-152.0,0.0001246,2]
[398013678,1765285847955,-334.0,0.0001246,2]
[398013679,1765285847965,-152.0,0.0001246,2]
[398013680,1765285847974,-334.0,0.0001246,2]
[398013681,1765285847984,-152.0,0.0001246,2]
[398013682,1765285847993,-334.0,0.0001246,2]
[398013683,1765285848002,-152.0,0.0001246,2]
[398013684,1765285848012,-334.0,0.0001246,2]
[398013685,1765285848021,-152.0,0.0001246,2]
[398013686,1765285848030,-334.0,0.0001246,2]
[398013687,1765285848040,-152.0,0.0001246,2]
[398013688,1765285848049,-334.0,0.0001246,2]
[398013689,1765285848058,-152.0,0.0001246,2]
[398013690,1765285848067,-334.0,0.0001246,2]
[398013691,1765285848076,-152.0,0.0001246,2]
[398013692,1765285848086,-334.0,0.0001246,2]
[398013693,1765285848095,-152.0,0.0001246,2]
[398013694,1765285848105,-334.0,0.0001246,2]
[398013695,1765285848115,-152.0,0.0001246,2]
[398013696,1765285848124,-152.0,0.0001246,2]
[398013697,1765285848133,-334.0,0.0001246,2]
[398013698,1765285848142,-434.81658447,0.0001246,2]
[398013699,1765285848151,-152.0,0.0001246,2]
[398013700,1765285848161,-152.0,0.0001246,2]
[398013701,1765285848171,-152.0,0.0001246,2]
[398013702,1765285848180,-152.0,0.0001246,2]
[398013703,1765285848190,-152.0,0.0001246,2]
[398013704,1765285848199,-152.0,0.0001246,2]
[398013705,1765285848209,-152.0,0.0001246,2]
[398013706,1765285848219,-152.0,0.0001246,2]
[398013707,1765285848228,-152.0,0.0001246,2]
[398013708,1765285848238,-152.0,0.0001246,2]
[398013709,1765285848247,-255.26971688,0.0001246,2]
[398013710,1765285848257,-152.0,0.0001246,2]
[398013711,1765285848266,-152.0,0.0001246,2]
[398013712,1765285848276,-152.0,0.0001246,2]
[398013713,1765285848285,-152.0,0.0001246,2]
[398013714,1765285848294,-156.0,0.0001246,2]
[398013715,1765285848304,-334.0,0.0001246,2]
[398013716,1765285848313,-334.0,0.0001246,2]
[398013717,1765285848322,-5880.78108993,0.000125,2]
[398013718,1765285848332,-151.0,0.000125,2]
[398013719,1765285848341,-182.90025379,0.000125,2]
[398013720,1765285848351,-151.49,0.000125,2]
[398013721,1765285848361,-151.0,0.000126,2]
[398013722,1765285848370,-151.0,0.000126,2]
[398013723,1765285848380,-151.0,0.000126,2]
[398013724,1765285848389,-151.0,0.000126,2]
[398013725,1765285848399,-151.0,0.000126,2]
[398013726,1765285848408,-500.0,0.00012603,2]
[398013727,1765285848418,-1000.0,0.00012685,2]
[398013728,1765285848427,-492.0,0.00012685,2]
[398013729,1765285848437,-151.0,0.000127,2]
[398013730,1765285848446,-151.0,0.000128,2]
[398013731,1765285848456,-151.0,0.000128,2]
[398013732,1765285848465,-151.0,0.000128,2]
[398013733,1765285848474,-151.0,0.000128,2]
[398013734,1765285848483,-151.0,0.000128,2]
[398013735,1765285848493,-2665.76,0.00012855,2]
[398013736,1765285848502,-458.70507008,0.00012875,2]
[398013737,1765285848511,-500.0,0.00012877,2]
[398013738,1765285848520,-159.0,0.000129,2]
[398013739,1765285848530,-159.0,0.000129,2]
[398013740,1765285848540,-156.0,0.000129,2]
[398013741,1765285848549,-157.37444386,0.000129,2]
[398013742,1765285848558,-1806.04283571,0.000129,2]
[398013743,1765285848579,-892.8274761,0.000129,2]
[398013744,1765286201018,150.0,0.00012784,30]
[398013745,1765286201941,150.0,0.00013947,30]
[398013749,1765286424957,150.0,0.00012791,30]
[398013750,1765286425382,150.0,0.00013954,30]
[398013751,1765286619829,5000.0,6.733e-05,2]
[398013752,1765286627784,1267.98654113,6.733e-05,2]
[398013753,1765286636260,5000.0,6.733e-05,2]
[398013754,1765286643902,5000.0,6.733e-05,2]
[398013755,1765286656656,-300.50039579,6.754e-05,2]
[398013756,1765286659533,5000.0,6.733e-05,2]
[398013757,1765286660246,-316.75008529,6.754e-05,2]
[398013758,1765286667707,5000.0,6.733e-05,2]
[398013759,1765286683258,5000.0,6.733e-05,2]
[398013760,1765286691056,5000.0,6.733e-05,2]
[398013761,1765286707206,5000.0,6.733e-05,2]
[398013762,1765286715245,3732.01345887,6.733e-05,2]
[398013763,1765286732146,-1432.385218,6.666e-05,2]
[398013764,1765286827082,-1308.17646241,6.666e-05,2]
[398013765,1765286840081,-333.83818965,6.666e-05,2]
[398013766,1765286844122,-161.30995212,6.666e-05,2]
[398013767,1765286874780,150.0,0.00013872,30]
[398013768,1765286923495,5000.0,6.523e-05,2]
[398013769,1765286947184,5000.0,6.523e-05,2]
[398013770,1765286969492,0.01,6.523e-05,2]
[398013771,1765286969533,4999.99,6.523e-05,2]
[398013772,1765286991277,5000.0,6.523e-05,2]
[398013773,1765287014480,0.02,6.523e-05,2]
[398013774,1765287014504,4999.98,6.523e-05,2]
[398013799,1765287032309,-5000.0,6.599e-05,2]
[398013800,1765287032319,-514.0,6.599e-05,2]
[398013801,1765287032328,-298.95897922,6.7e-05,2]
[398013802,1765287032339,-2203.63767462,6.754e-05,2]
[398013803,1765287032351,-150.0,6.805e-05,2]
[398013804,1765287032360,-1200.0,7.252e-05,2]
[398013805,1765287032369,-347.30356795,7.253e-05,2]
[398013806,1765287032378,-160.0,7.253e-05,2]
[398013807,1765287032387,-275.78,7.439e-05,2]
[398013808,1765287032396,-300.0,7.579e-05,2]
[398013809,1765287032405,-300.0,7.579e-05,2]
[398013810,1765287032415,-300.0,7.579e-05,2]
[398013811,1765287032424,-300.0,7.579e-05,2]
[398013812,1765287032433,-38794.184469,7.58e-05,2]
[398013813,1765287032444,-1200.0,7.673e-05,2]
[398013814,1765287032453,-47733.66412567,7.674e-05,2]
[398013815,1765287032462,-977.86880464,7.767e-05,2]
[398013816,1765287032471,-300.0,7.934e-05,2]
[398013817,1765287032480,-300.0,7.934e-05,2]
[398013818,1765287032489,-300.0,7.934e-05,2]
[398013819,1765287032499,-300.0,7.934e-05,2]
[398013820,1765287032725,-300.0,7.934e-05,2]
[398013821,1765287032742,-300.0,7.934e-05,2]
[398013822,1765287032752,-300.0,7.934e-05,2]
[398013823,1765287032762,-300.0,7.934e-05,2]
[398013824,1765287032773,-300.0,7.934e-05,2]
[398013825,1765287032783,-300.0,7.934e-05,2]
[398013826,1765287032795,-300.0,7.934e-05,2]
[398013827,1765287032805,-300.0,7.934e-05,2]
[398013828,1765287032815,-300.0,7.934e-05,2]
[398013829,1765287032824,-300.0,7.934e-05,2]